bitfinex/quotes_BTCUSD_20240823
["timestamp","ask_amount","ask_price","bid_price","bid_amount"]
[1724397372537,0.1362,61254.0,61253.0,1.91435523]
[1724397372916,0.1362,61254.0,61253.0,2.0011648]
[1724397373587,0.1362,61254.0,61253.0,1.92835523]
[1724397374510,0.1362,61254.0,61253.0,2.02541523]
[1724397374687,0.1362,61254.0,61253.0,2.01984439]
[1724397374930,0.1362,61254.0,61253.0,2.037572]
[1724397375134,0.1362,61254.0,61253.0,2.00769047]
[1724397375336,0.1362,61254.0,61253.0,2.0254181]
[1724397376088,0.16180345,61254.0,61253.0,2.0254181]
[1724397377132,0.16180345,61254.0,61253.0,1.6989041]
[1724397377302,0.16180345,61254.0,61253.0,1.6018441]
[1724397377858,0.16180345,61254.0,61253.0,1.67467812]
[1724397378363,0.16180345,61254.0,61253.0,1.67467976]
[1724397379128,0.16180345,61254.0,61253.0,0.81851932]
[1724397379329,0.16180345,61254.0,61253.0,0.71007881]
[1724397379504,0.16180345,61254.0,61253.0,1.08515313]
[1724397379941,0.16180345,61254.0,61253.0,1.03659281]
[1724397380401,0.16180345,61254.0,61253.0,1.05959281]
[1724397381473,0.16262745,61254.0,61253.0,1.05959281]
[1724397381674,0.16262745,61254.0,61253.0,1.04186354]
[1724397382078,0.16262745,61254.0,61253.0,1.05959363]
[1724397384100,0.16262745,61254.0,61253.0,1.10814501]
[1724397385104,0.16262745,61254.0,61253.0,1.41692892]
[1724397385283,0.16262745,61254.0,61253.0,1.38610615]
[1724397385516,0.16262745,61254.0,61253.0,1.36837754]
[1724397385722,0.16262745,61254.0,61253.0,1.38610612]
[1724397386662,0.16262745,61254.0,61253.0,1.45892711]
[1724397388447,0.16262745,61254.0,61253.0,1.44119853]
[1724397388661,0.10162745,61254.0,61253.0,1.45892779]
[1724397391588,0.16682745,61254.0,61253.0,1.45892779]
[1724397395690,0.16682745,61254.0,61253.0,1.45892797]
[1724397395895,0.10162745,61254.0,61253.0,1.45892797]
[1724397397016,0.10162745,61254.0,61253.0,1.82105261]
[1724397398505,0.10162745,61254.0,61253.0,1.84532628]
[1724397398916,0.10162745,61254.0,61253.0,1.73050218]
[1724397399118,0.02642745,61254.0,61253.0,1.74822795]
[1724397399494,0.02642745,61254.0,61253.0,1.74820922]
[1724397400321,0.02642745,61254.0,61253.0,2.07572322]
[1724397400522,0.02642745,61254.0,61253.0,2.26057898]
[1724397401080,0.02642745,61254.0,61253.0,2.26057668]
[1724397401283,0.02642745,61254.0,61253.0,2.12522092]
[1724397402379,0.02642745,61254.0,61253.0,2.11122092]
[1724397402584,0.02642745,61254.0,61253.0,2.12521955]
[1724397402763,0.02642745,61254.0,61253.0,2.13921955]
[1724397404360,0.02642745,61254.0,61253.0,2.13920584]
[1724397405888,0.02642745,61254.0,61253.0,2.13920456]
[1724397406244,0.02642745,61254.0,61253.0,2.05898374]
[1724397406448,0.10832745,61254.0,61253.0,2.07670456]
[1724397409103,0.10832745,61254.0,61253.0,2.07670461]
[1724397410879,0.10832745,61254.0,61253.0,1.71461236]
[1724397411496,0.10832745,61254.0,61253.0,2.07670462]
[1724397411724,0.10832745,61254.0,61253.0,1.7304698]
[1724397411960,0.02642745,61254.0,61253.0,2.13730135]
[1724397412527,0.02642745,61254.0,61253.0,2.13730015]
[1724397412737,0.02642745,61254.0,61253.0,1.77520789]
[1724397412959,0.02642745,61254.0,61253.0,2.23552189]
[1724397413159,0.02642745,61254.0,61253.0,2.3516862]
[1724397413514,0.02642745,61254.0,61253.0,2.0251722]
[1724397413884,0.02642745,61254.0,61253.0,1.87520789]
[1724397414094,0.02642745,61254.0,61253.0,1.86120789]
[1724397414221,0.02642745,61254.0,61253.0,1.87520789]
[1724397414808,0.08111,61262.0,61261.0,1.145648]
[1724397415018,0.08111,61262.0,61261.0,1.43806941]
[1724397415423,0.1067106,61262.0,61261.0,1.43806941]
[1724397415690,0.1067106,61262.0,61261.0,1.42035306]
[1724397415900,0.1067106,61262.0,61261.0,1.43806682]
[1724397416097,0.1712106,61262.0,61261.0,1.42035306]
[1724397416319,0.1712106,61262.0,61261.0,1.43806687]
[1724397416548,0.1712106,61262.0,61261.0,1.45206687]
[1724397416849,0.1720346,61262.0,61261.0,1.46606687]
[1724397417185,0.1720346,61262.0,61261.0,1.46606672]
[1724397417602,0.1720346,61262.0,61261.0,1.82813806]
[1724397418227,0.1720346,61262.0,61261.0,1.90091811]
[1724397419235,0.1720346,61262.0,61261.0,1.53884677]
[1724397420097,0.1075346,61262.0,61261.0,1.53884677]
[1724397420424,0.1075346,61262.0,61261.0,1.9009167]
[1724397421639,0.1075346,61262.0,61261.0,1.90091703]
[1724397422311,0.1075346,61262.0,61261.0,1.5388471]
[1724397423165,0.1075346,61262.0,61261.0,1.46606705]
[1724397424793,0.1075346,61262.0,61261.0,1.53881546]
[1724397425473,0.1075346,61262.0,61261.0,1.53881918]
[1724397425829,0.1075346,61262.0,61261.0,1.92513614]
[1724397426034,0.1075346,61262.0,61261.0,2.25160714]
[1724397426231,0.0267346,61262.0,61261.0,2.15460926]
[1724397427139,0.0267346,61262.0,61261.0,2.2515768]
[1724397427569,0.0267346,61262.0,61261.0,2.17144436]
[1724397427749,0.1745346,61262.0,61261.0,1.38593833]
[1724397427934,0.1745346,61262.0,61261.0,1.45207077]
[1724397428135,0.1745346,61262.0,61261.0,1.51456022]
[1724397428341,0.1745346,61262.0,61261.0,1.48284251]
[1724397428541,0.1745346,61262.0,61261.0,1.50056053]
[1724397429399,0.1745346,61262.0,61261.0,1.46607108]
[1724397430505,0.1745346,61262.0,61261.0,0.38052564]
[1724397430925,0.1745346,61262.0,61261.0,0.38425229]
[1724397431336,0.1745346,61262.0,61261.0,0.37025229]
[1724397431581,0.1745346,61262.0,61261.0,0.68272329]
[1724397431739,0.1745346,61262.0,61261.0,0.71972329]
[1724397431940,0.1745346,61262.0,61261.0,0.40725229]
[1724397432118,0.1745346,61262.0,61261.0,0.37025229]
[1724397432302,0.1745346,61262.0,61261.0,0.04301431]
[1724397432503,0.1745346,61262.0,61261.0,0.05701431]
[1724397433115,0.1745346,61262.0,61261.0,0.03554496]
[1724397433719,0.1745346,61262.0,61261.0,0.21650648]
[1724397434604,0.1745346,61262.0,61261.0,0.05327148]
[1724397435629,0.1745346,61262.0,61261.0,0.03554496]
[1724397435773,0.1745346,61262.0,61261.0,0.05327177]
[1724397435975,0.1745346,61262.0,61261.0,0.04572681]
[1724397438267,0.1745346,61262.0,61261.0,0.028]
[1724397440796,0.1745346,61262.0,61261.0,0.191235]
[1724397441003,0.1745346,61262.0,61261.0,0.028]
[1724397444406,0.177792,61262.0,61261.0,0.028]
[1724397445247,0.029992,61262.0,61254.0,0.0009064]
[1724397445464,0.029992,61262.0,61261.0,0.01]
[1724397445644,0.029992,61262.0,61261.0,0.015]
[1724397446051,0.171492,61262.0,61261.0,0.015]
[1724397446886,0.171492,61262.0,61261.0,0.005]
[1724397448015,0.171492,61262.0,61261.0,0.015]
[1724397448895,0.1682346,61262.0,61261.0,0.015]
[1724397449752,0.171492,61262.0,61261.0,0.015]
[1724397462764,0.24836704,61262.0,61261.0,0.015]
[1724397469576,0.88050961,61262.0,61261.0,0.015]
[1724397470459,1.32853502,61262.0,61261.0,0.015]
[1724397470651,1.37741626,61262.0,61261.0,0.015]
[1724397470880,1.32853502,61262.0,61261.0,0.015]
[1724397471087,1.40189468,61262.0,61261.0,0.015]
[1724397471260,1.32853502,61262.0,61261.0,0.015]
[1724397471397,1.65500102,61262.0,61261.0,0.01]
[1724397471808,1.65600102,61262.0,61261.0,0.01]
[1724397472031,1.7538139,61262.0,61261.0,0.01]
[1724397472264,1.65600102,61262.0,61261.0,0.01]
[1724397472600,0.163251,61255.0,61254.0,0.0009064]
[1724397472803,0.39434084,61255.0,61254.0,0.0009064]
[1724397473004,0.23108984,61255.0,61254.0,0.0009064]
[1724397473311,0.25344256,61255.0,61254.0,0.0009064]
[1724397473531,0.10771012,61255.0,61254.0,0.0009064]
[1724397473678,0.02561012,61255.0,61254.0,0.0674064]
[1724397474084,0.02561012,61255.0,61254.0,0.0784064]
[1724397474983,0.02561012,61255.0,61254.0,0.0844064]
[1724397475697,0.02561012,61255.0,61254.0,0.0179064]
[1724397475930,0.16881012,61255.0,61254.0,0.0179064]
[1724397479301,0.17206752,61255.0,61254.0,0.0179064]
[1724397481007,0.16881012,61255.0,61254.0,0.0179064]
[1724397482432,0.17206752,61255.0,61254.0,0.0179064]
[1724397482880,0.33531852,61255.0,61254.0,0.0179064]
[1724397483081,0.17206752,61255.0,61254.0,0.0179064]
[1724397485009,0.16881012,61255.0,61254.0,0.0179064]
[1724397487260,0.16963412,61255.0,61254.0,0.0179064]
[1724397488843,0.24976656,61255.0,61254.0,0.0179064]
[1724397489866,0.02643412,61255.0,61254.0,0.0179064]
[1724397490090,0.02643412,61255.0,61254.0,0.0789064]
[1724397492975,0.02643412,61255.0,61254.0,0.0179064]
[1724397499301,0.02643412,61255.0,61254.0,0.02861148]
[1724397499870,0.10523412,61255.0,61254.0,0.02861148]
[1724397500039,0.10849152,61255.0,61254.0,0.02861148]
[1724397506141,0.18536656,61255.0,61254.0,0.02861148]
[1724397506342,0.18536656,61255.0,61254.0,0.0179064]
[1724397507935,0.10523412,61255.0,61254.0,0.0179064]
[1724397512085,0.18536656,61255.0,61254.0,0.0179064]
[1724397513993,0.24976656,61255.0,61254.0,0.0179064]
[1724397514198,0.25302396,61255.0,61254.0,0.0179064]
[1724397514605,0.24976656,61255.0,61254.0,0.0179064]
[1724397515226,0.30201405,61255.0,61254.0,0.0179064]
[1724397515373,0.46526505,61255.0,61254.0,0.0179064]
[1724397520106,0.79176805,61255.0,61254.0,0.0179064]
[1724397520308,1.16726115,61255.0,61254.0,0.0179064]
[1724397520617,1.06928096,61255.0,61254.0,0.0179064]
[1724397520826,1.1917562,61255.0,61254.0,0.0179064]
[1724397521251,1.1917562,61255.0,61254.0,0.0009064]
[1724397521849,1.1937562,61255.0,61254.0,0.0009064]
[1724397523104,1.07128096,61255.0,61254.0,0.0009064]
[1724397524104,1.56178694,61255.0,61254.0,0.0009064]
[1724397524304,1.66178694,61255.0,61254.0,0.0009064]
[1724397524489,1.66278694,61255.0,61254.0,0.0009064]
[1724397524928,1.98928994,61255.0,61254.0,0.0009064]
[1724397525325,2.15461952,61255.0,61254.0,0.0009064]
[1724397525525,2.3185983,61255.0,61254.0,0.0009064]
[1724397525726,3.0185983,61255.0,61254.0,0.0009064]
[1724397525926,3.0165983,61255.0,61254.0,0.0009064]
[1724397526130,2.85326872,61255.0,61254.0,0.0019064]
[1724397526355,2.15326872,61255.0,61254.0,0.0019064]
[1724397529269,2.85326872,61255.0,61254.0,0.0019064]
[1724397529467,0.003,61252.0,61251.0,0.0009064]
[1724397529670,0.310783,61243.0,61242.0,0.0009064]
[1724397529873,0.65491842,61243.0,61242.0,0.0009064]
[1724397530089,1.63461942,61243.0,61242.0,0.0009064]
[1724397530294,1.7985982,61243.0,61242.0,0.0009064]
[1724397530464,1.82421737,61243.0,61242.0,0.0009064]
[1724397531242,1.82921737,61243.0,61242.0,0.0009064]
[1724397532062,2.52921737,61243.0,61242.0,0.0009064]
[1724397532265,2.85578437,61243.0,61242.0,0.0009064]
[1724397533409,1.37142344,61232.0,61229.0,0.009064]
[1724397533610,1.63542642,61232.0,61229.0,0.009064]
[1724397534181,1.66104903,61232.0,61229.0,0.009064]
[1724397534562,1.66404903,61232.0,61231.0,0.0012]
[1724397535370,1.67804903,61232.0,61231.0,0.0022]
[1724397535569,1.66404903,61232.0,61231.0,0.0012]
[1724397536170,1.66404903,61232.0,61231.0,0.0002]
[1724397536171,1.66104903,61232.0,61231.0,0.0002]
[1724397536410,1.73163467,61232.0,61231.0,0.0002]
[1724397536620,1.33442303,61232.0,61231.0,0.0002]
[1724397536939,1.33442303,61232.0,61231.0,0.00994285]
[1724397537214,1.33442303,61232.0,61231.0,0.01094285]
[1724397537215,1.35812705,61232.0,61231.0,0.01094285]
[1724397537415,1.34742303,61232.0,61231.0,0.01094285]
[1724397538355,0.94066459,61232.0,61231.0,0.01094285]
[1724397538552,0.13962261,61232.0,61231.0,0.01094285]
[1724397538776,0.14288001,61232.0,61231.0,0.01898727]
[1724397539008,0.51359599,61232.0,61231.0,0.01898727]
[1724397539208,0.94022199,61232.0,61231.0,0.0022]
[1724397539407,1.26784799,61232.0,61231.0,0.0012]
[1724397539863,1.43182677,61232.0,61231.0,0.0012]
[1724397540083,1.41782677,61232.0,61231.0,0.0002]
[1724397540491,1.42282677,61232.0,61231.0,0.0012]
[1724397540730,1.42282677,61232.0,61231.0,0.0002]
[1724397540731,1.41782677,61232.0,61231.0,0.0002]
[1724397541144,1.42582677,61232.0,61231.0,0.0012]
[1724397541932,1.26184799,61232.0,61231.0,0.0012]
[1724397542317,0.44428299,61232.0,61231.0,0.0012]
[1724397542519,0.46241543,61232.0,61231.0,0.0012]
[1724397543921,0.62572843,61232.0,61231.0,0.0012]
[1724397544327,0.46241543,61232.0,61231.0,0.0012]
[1724397544563,0.62572843,61232.0,61231.0,0.0012]
[1724397544767,0.46241543,61232.0,61231.0,0.0012]
[1724397546179,0.62572843,61232.0,61231.0,0.0012]
[1724397546390,0.46241543,61232.0,61231.0,0.0012]
[1724397547344,0.62572843,61232.0,61231.0,0.0012]
[1724397547551,0.46241543,61232.0,61231.0,0.0012]
[1724397548401,0.46241543,61232.0,61231.0,0.0021064]
[1724397549358,0.62572843,61232.0,61231.0,0.0021064]
[1724397551233,0.46241543,61232.0,61231.0,0.0021064]
[1724397551483,0.62572843,61232.0,61231.0,0.0021064]
[1724397555089,0.46241543,61232.0,61231.0,0.0021064]
[1724397555334,0.62572843,61232.0,61231.0,0.0021064]
[1724397556370,0.46241543,61232.0,61231.0,0.0021064]
[1724397556612,0.62572843,61232.0,61231.0,0.0021064]
[1724397557921,1.08793794,61232.0,61231.0,0.0021064]
[1724397558131,0.76131194,61232.0,61231.0,0.0021064]
[1724397558986,0.62572843,61232.0,61231.0,0.0021064]
[1724397559291,0.54559599,61232.0,61231.0,0.0021064]
[1724397559673,0.62572843,61232.0,61231.0,0.0021064]
[1724397561057,0.95235443,61232.0,61231.0,0.0021064]
[1724397561213,1.33988043,61232.0,61231.0,0.0021064]
[1724397561419,1.50385921,61232.0,61231.0,0.0021064]
[1724397562499,0.93312199,61232.0,61231.0,0.0021064]
[1724397562699,1.01325443,61232.0,61231.0,0.0021064]
[1724397565393,1.33988043,61232.0,61231.0,0.0021064]
[1724397565613,1.01325443,61232.0,61231.0,0.0021064]
[1724397565840,1.03887501,61232.0,61231.0,0.0021064]
[1724397567305,0.95874257,61232.0,61231.0,0.0021064]
[1724397567908,1.03887501,61232.0,61231.0,0.0021064]
[1724397569127,1.08779901,61232.0,61231.0,0.0021064]
[1724397569328,1.57840379,61232.0,61231.0,0.0021064]
[1724397569537,1.52947979,61232.0,61231.0,0.0021064]
[1724397570145,1.97841579,61232.0,61231.0,0.0021064]
[1724397570347,1.65178979,61232.0,61231.0,0.0021064]
[1724397571119,1.97841579,61232.0,61231.0,0.0021064]
[1724397571622,1.36550101,61232.0,61231.0,0.0021064]
[1724397571753,0.89784257,61232.0,61231.0,0.0021064]
[1724397571963,1.07597944,61232.0,61231.0,0.0021064]
[1724397573898,1.30460101,61232.0,61231.0,0.0021064]
[1724397574106,1.10051844,61232.0,61231.0,0.0021064]
[1724397574376,1.020386,61232.0,61231.0,0.0021064]
[1724397574580,0.89784257,61232.0,61231.0,0.0021064]
[1724397574781,0.97797501,61232.0,61231.0,0.0021064]
[1724397575323,1.10051844,61232.0,61231.0,0.0021064]
[1724397575818,1.076048,61232.0,61231.0,0.0021064]
[1724397575945,0.97797501,61232.0,61231.0,0.0021064]
[1724397576147,1.24002518,61232.0,61231.0,0.0021064]
[1724397576951,0.9959113,61232.0,61231.0,0.0021064]
[1724397577157,1.07604374,61232.0,61231.0,0.0021064]
[1724397577710,0.97797501,61232.0,61231.0,0.0021064]
[1724397577910,1.07604453,61232.0,61231.0,0.0021064]
[1724397578116,0.97797501,61232.0,61231.0,0.0021064]
[1724397578523,1.20835379,61232.0,61231.0,0.0021064]
[1724397578741,1.86260579,61232.0,61231.0,0.0021064]
[1724397581132,1.69862701,61232.0,61231.0,0.0021064]
[1724397581333,1.69762701,61232.0,61231.0,0.0021064]
[1724397581735,1.69862701,61232.0,61231.0,0.0021064]
[1724397585177,0.32324617,61232.0,61231.0,0.0021064]
[1724397585349,0.40337861,61232.0,61231.0,0.0021064]
[1724397585705,0.52599701,61232.0,61231.0,0.0021064]
[1724397586143,0.68931001,61232.0,61231.0,0.0021064]
[1724397586348,0.36199403,61232.0,61231.0,0.0021064]
[1724397586562,0.36199454,61232.0,61231.0,0.0021064]
[1724397587326,0.23937563,61232.0,61231.0,0.0021064]
[1724397587890,0.40268863,61232.0,61231.0,0.0021064]
[1724397588089,0.52530846,61232.0,61231.0,0.0021064]
[1724397588499,1.01593744,61232.0,61231.0,0.0021064]
[1724397588709,1.5036892,61232.0,61231.0,0.0021064]
[1724397589023,1.36264361,61232.0,61231.0,0.0021064]
[1724397593067,1.68926961,61232.0,61231.0,0.0021064]
[1724397593502,1.83641231,61232.0,61231.0,0.0021064]
[1724397593674,1.68926961,61232.0,61231.0,0.0021064]
[1724397596841,1.69026961,61232.0,61231.0,0.0021064]
[1724397597081,1.85424839,61232.0,61231.0,0.0021064]
[1724397598584,2.00138497,61232.0,61231.0,0.0021064]
[1724397601122,2.18087439,61232.0,61231.0,0.0021064]
[1724397602374,2.34640304,61232.0,61231.0,0.0021064]
[1724397602581,2.34637331,61232.0,61231.0,0.0021064]
[1724397602788,2.18087439,61232.0,61231.0,0.0021064]
[1724397603970,2.08087439,61232.0,61231.0,0.0021064]
[1724397604171,1.51013717,61232.0,61231.0,0.0021064]
[1724397604428,1.20813645,61232.0,61231.0,0.0021064]
[1724397604707,1.22436889,61232.0,61231.0,0.0021064]
[1724397605876,1.55199489,61232.0,61231.0,0.0021064]
[1724397607192,1.61519489,61232.0,61231.0,0.0021064]
[1724397607338,1.77917367,61232.0,61231.0,0.0021064]
[1724397608504,1.61519489,61232.0,61231.0,0.0021064]
[1724397610126,1.55099489,61232.0,61231.0,0.01084925]
[1724397610330,0.15726324,61232.0,61231.0,0.07254925]
[1724397610677,0.05924586,61232.0,61231.0,0.14310154]
[1724397610877,0.05924586,61232.0,61231.0,0.01960154]
[1724397611052,0.05924586,61232.0,61231.0,0.14310154]
[1724397611666,0.02562528,61232.0,61231.0,0.14210154]
[1724397611988,0.02662528,61232.0,61231.0,0.14210154]
[1724397612245,0.02662528,61232.0,61231.0,0.08030154]
[1724397612443,0.68056726,61232.0,61231.0,0.01860154]
[1724397612592,1.00719326,61232.0,61231.0,0.01860154]
[1724397612799,1.00719326,61232.0,61231.0,0.00984925]
[1724397612995,1.00719326,61232.0,61231.0,0.01784925]
[1724397612996,1.05619942,61232.0,61231.0,0.01784925]
[1724397613197,1.05519942,61232.0,61231.0,0.01784925]
[1724397613400,1.00619326,61232.0,61231.0,0.01784925]
[1724397613601,1.05518769,61232.0,61231.0,0.00984925]
[1724397614004,1.00619326,61232.0,61231.0,0.01284925]
[1724397614209,1.80164526,61232.0,61231.0,0.01284925]
[1724397614406,1.57501926,61232.0,61231.0,0.01284925]
[1724397614647,1.57501926,61232.0,61231.0,0.01784925]
[1724397614850,1.57501926,61232.0,61231.0,0.01284925]
[1724397615170,1.57601926,61232.0,61231.0,0.01284925]
[1724397615372,1.58443539,61232.0,61231.0,0.00984925]
[1724397615738,1.55881011,61232.0,61231.0,0.00984925]
[1724397615867,1.56481011,61232.0,61231.0,0.01084925]
[1724397616504,1.49399398,61232.0,61231.0,0.01084925]
[1724397616711,1.24750042,61232.0,61231.0,0.01084925]
[1724397620670,1.62636967,61232.0,61231.0,0.01084925]
[1724397621087,1.68656967,61232.0,61231.0,0.01084925]
[1724397622086,1.84217708,61232.0,61231.0,0.01084925]
[1724397622287,1.68656967,61232.0,61231.0,0.01084925]
[1724397626743,2.16018336,61232.0,61231.0,0.01084925]
[1724397626942,2.01319567,61232.0,61231.0,0.01084925]
[1724397627142,2.17855682,61232.0,61231.0,0.01084925]
[1724397627357,1.60643723,61232.0,61231.0,0.01084925]
[1724397627561,1.68656967,61232.0,61231.0,0.01084925]
[1724397627785,1.68056967,61232.0,61231.0,0.00984925]
[1724397627980,1.68056967,61232.0,61231.0,0.01084925]
[1724397627981,1.68856967,61232.0,61231.0,0.01084925]
[1724397628954,1.68939367,61232.0,61231.0,0.01084925]
[1724397629355,2.01601967,61232.0,61231.0,0.01084925]
[1724397630409,2.33738294,61232.0,61231.0,0.01084925]
[1724397630612,2.17202179,61232.0,61231.0,0.01084925]
[1724397631140,2.3373677,61232.0,61231.0,0.01084925]
[1724397632439,1.77460714,61232.0,61231.0,0.01084925]
[1724397632550,1.85473958,61232.0,61231.0,0.01084925]
[1724397633160,0.327679,61222.0,61207.0,0.0639]
[1724397633356,1.19863242,61222.0,61207.0,0.0639]
[1724397633556,1.74517466,61222.0,61207.0,0.0639]
[1724397633773,2.09748346,61222.0,61207.0,0.0639]
[1724397634172,1.97762022,61222.0,61207.0,0.0639]
[1724397634471,2.81207371,61222.0,61207.0,0.0639]
[1724397634700,2.95899818,61222.0,61207.0,0.0639]
[1724397634978,2.81207371,61222.0,61207.0,0.0639]
[1724397635190,2.95896707,61222.0,61221.0,0.0011]
[1724397636067,2.25896707,61222.0,61221.0,0.0011]
[1724397636288,2.37606716,61222.0,61221.0,0.0011]
[1724397637278,2.2291738,61222.0,61221.0,0.0011]
[1724397637507,2.9291738,61222.0,61221.0,0.0011]
[1724397638055,3.07606716,61222.0,61221.0,0.0011]
[1724397638481,3.08587939,61222.0,61221.0,0.0011]
[1724397638689,2.93898603,61222.0,61221.0,0.0011]
[1724397639050,2.23898603,61222.0,61221.0,0.0011]
[1724397639557,2.38577865,61222.0,61221.0,0.0011]
[1724397639836,2.58866503,61222.0,61221.0,0.0011]
[1724397640220,2.73543623,61222.0,61221.0,0.0011]
[1724397641239,2.73543623,61222.0,61221.0,0.0020064]
[1724397641796,2.58866503,61222.0,61221.0,0.0020064]
[1724397641999,2.73541196,61222.0,61221.0,0.0020064]
[1724397642197,3.28866503,61222.0,61221.0,0.0020064]
[1724397643141,3.43541196,61222.0,61221.0,0.0020064]
[1724397643746,3.29066503,61222.0,61221.0,0.0020064]
[1724397643910,3.29266503,61222.0,61221.0,0.0020064]
[1724397644712,3.29266503,61222.0,61192.0,0.009064]
[1724397644713,1.612998,61212.0,61192.0,0.009064]
[1724397644937,0.490251,61193.0,61192.0,0.009064]
[1724397645154,1.40792198,61193.0,61192.0,0.009064]
[1724397645352,1.40892198,61193.0,61192.0,0.02153949]
[1724397645479,1.43455918,61193.0,61192.0,0.02153949]
[1724397645680,1.43355918,61193.0,61192.0,0.009064]
[1724397645881,1.43355918,61193.0,61192.0,0.070864]
[1724397646144,1.43455918,61193.0,61192.0,0.070864]
[1724397646370,1.44555918,61193.0,61192.0,0.009064]
[1724397646593,1.52305918,61193.0,61192.0,0.009064]
[1724397647176,1.52305918,61193.0,61192.0,0.010064]
[1724397647177,1.52905918,61193.0,61192.0,0.010064]
[1724397647348,1.51805918,61193.0,61192.0,0.010064]
[1724397647753,1.91779318,61193.0,61192.0,0.010064]
[1724397648921,1.97617622,61193.0,61192.0,0.010064]
[1724397649335,2.65035462,61193.0,61192.0,0.010064]
[1724397649519,2.69917622,61193.0,61192.0,0.010064]
[1724397649725,2.65035462,61193.0,61192.0,0.010064]
[1724397649889,2.88762715,61193.0,61192.0,0.010064]
[1724397650174,2.85710748,61193.0,61192.0,0.009064]
[1724397650708,2.62435462,61193.0,61192.0,0.009064]
[1724397650875,2.63835462,61193.0,61192.0,0.009064]
[1724397655872,2.24962062,61193.0,61192.0,0.009064]
[1724397656099,2.17112062,61193.0,61192.0,0.009064]
[1724397656813,2.15712062,61193.0,61192.0,0.009064]
[1724397657017,2.14312062,61193.0,61192.0,0.009064]
[1724397657213,1.45612062,61193.0,61192.0,0.009064]
[1724397657438,1.47012062,61193.0,61192.0,0.009064]
[1724397657643,1.45612062,61193.0,61192.0,0.009064]
[1724397658049,1.46812062,61193.0,61192.0,0.009064]
[1724397658812,1.45512062,61193.0,61192.0,0.009064]
[1724397659183,1.57814227,61193.0,61192.0,0.009064]
[1724397659717,1.45512062,61193.0,61192.0,0.009064]
[1724397659867,1.46112062,61193.0,61192.0,0.009064]
[1724397661760,0.0436372,61193.0,61192.0,0.132864]
[1724397662039,0.2070542,61193.0,61192.0,0.132864]
[1724397662270,0.2070542,61193.0,61192.0,0.14552837]
[1724397662463,0.69789118,61193.0,61192.0,0.14552837]
[1724397662647,0.69189118,61193.0,61192.0,0.132864]
[1724397662851,1.02472518,61193.0,61192.0,0.132864]
[1724397663055,0.68589118,61193.0,61192.0,0.132864]
[1724397663228,0.68589118,61193.0,61192.0,0.071064]
[1724397663229,1.01472518,61193.0,61192.0,0.071064]
[1724397663435,1.00872518,61193.0,61192.0,0.071064]
[1724397663637,1.00672518,61193.0,61192.0,0.072064]
[1724397663893,1.01072518,61193.0,61192.0,0.010064]
[1724397664100,1.49608085,61193.0,61192.0,0.010064]
[1724397664410,1.50108085,61193.0,61192.0,0.010064]
[1724397664872,1.50108085,61193.0,61192.0,0.009064]
[1724397665167,1.33855918,61193.0,61192.0,0.010064]
[1724397665399,1.43855918,61193.0,61192.0,0.010064]
[1724397665611,1.43855918,61193.0,61192.0,0.009064]
[1724397665853,1.43355918,61193.0,61192.0,0.009064]
[1724397666095,1.43755918,61193.0,61192.0,0.009064]
[1724397666335,1.12072518,61193.0,61192.0,0.009064]
[1724397666594,1.18700296,61193.0,61192.0,0.070864]
[1724397666843,1.19300296,61193.0,61192.0,0.070864]
[1724397667567,1.20600296,61193.0,61192.0,0.070864]
[1724397667803,1.20600296,61193.0,61192.0,0.009064]
[1724397668008,1.18700296,61193.0,61192.0,0.009064]
[1724397668413,1.34342321,61193.0,61192.0,0.009064]
[1724397668614,1.19100296,61193.0,61192.0,0.009064]
[1724397668811,1.18700296,61193.0,61192.0,0.009064]
[1724397669228,1.19000296,61193.0,61192.0,0.009064]
[1724397669427,1.20000296,61193.0,61192.0,0.009064]
[1724397669634,1.19000296,61193.0,61192.0,0.009064]
[1724397670067,1.19900296,61193.0,61192.0,0.009064]
[1724397671115,0.87216896,61193.0,61192.0,0.009064]
[1724397671379,1.19900296,61193.0,61192.0,0.009064]
[1724397673374,0.87216896,61193.0,61192.0,0.009064]
[1724397673752,1.19900296,61193.0,61192.0,0.009064]
[1724397674329,0.1376372,61193.0,61192.0,0.135064]
[1724397674871,0.0376372,61193.0,61192.0,0.135064]
[1724397675212,0.0376372,61193.0,61192.0,0.1476847]
[1724397675418,0.0376372,61193.0,61191.0,0.0002]
[1724397675618,0.0346372,61193.0,61191.0,0.0002]
[1724397675819,0.0256372,61193.0,61191.0,0.0002]
[1724397676074,0.0276372,61193.0,61191.0,0.0002]
[1724397676283,0.0286372,61193.0,61191.0,0.0002]
[1724397676488,0.0256372,61193.0,61191.0,0.0002]
[1724397676776,0.0266372,61193.0,61191.0,0.0002]
[1724397677133,0.0266372,61193.0,61192.0,0.16342]
[1724397677339,0.0266372,61193.0,61192.0,0.24369778]
[1724397677709,0.0266372,61193.0,61192.0,0.16342]
[1724397678109,0.0276372,61193.0,61192.0,0.16342]
[1724397678243,0.0276372,61193.0,61192.0,0.22432]
[1724397678446,0.0266372,61193.0,61192.0,0.22432]
[1724397679122,0.0256372,61193.0,61192.0,0.22432]
[1724397679315,0.0266372,61193.0,61192.0,0.22432]
[1724397679735,0.0276372,61193.0,61192.0,0.22532]
[1724397682642,0.0276372,61193.0,61192.0,0.55216]
[1724397682869,0.0276372,61193.0,61192.0,0.88]
[1724397683575,0.0276372,61193.0,61192.0,0.882]
[1724397684115,0.0256372,61193.0,61192.0,0.881]
[1724397684369,0.0266372,61193.0,61192.0,0.905]
[1724397686040,0.0276372,61193.0,61192.0,0.907]
[1724397687005,0.0276372,61193.0,61192.0,0.58016]
[1724397688949,0.0276372,61193.0,61192.0,0.0639]
[1724397690208,0.0266372,61193.0,61192.0,0.0619]
[1724397690345,0.0266372,61193.0,61192.0,0.0629]
[1724397690346,0.0274612,61193.0,61192.0,0.0629]
[1724397690542,0.0284612,61193.0,61192.0,0.0739]
[1724397690745,0.0284612,61193.0,61192.0,0.0719]
[1724397690746,0.0274612,61193.0,61192.0,0.0719]
[1724397690996,0.0284612,61193.0,61192.0,0.0739]
[1724397691226,0.0274612,61193.0,61192.0,0.0629]
[1724397691661,0.0284612,61193.0,61192.0,0.013]
[1724397702481,0.0284612,61193.0,61192.0,0.0139064]
[1724397703678,0.02806782,61193.0,61192.0,0.0139064]
[1724397704741,0.02806782,61193.0,61192.0,0.1773264]
[1724397705384,0.02806782,61193.0,61192.0,0.5682664]
[1724397705591,0.02806782,61193.0,61192.0,0.2414264]
[1724397705805,0.02806782,61193.0,61192.0,0.2384264]
[1724397706352,0.02806782,61193.0,61192.0,0.5652664]
[1724397707514,0.02806782,61193.0,61192.0,0.58304571]
[1724397708123,0.02706782,61193.0,61192.0,0.57204571]
[1724397708519,0.02806782,61193.0,61192.0,0.58304571]
[1724397708711,0.02806782,61193.0,61192.0,0.58104571]